bitfinex/quotes_BTCUSD_20220202
["timestamp","ask_amount","ask_price","bid_price","bid_amount"]
[1643824202595,0.0020545,37464.0,37457.0,0.187081]
[1643824202803,0.0020545,37464.0,37460.0,0.6695]
[1643824202998,0.0020545,37464.0,37458.0,1.69214814]
[1643824202999,0.0020545,37464.0,37463.0,1.9195]
[1643824203198,0.0020545,37464.0,37463.0,2.1231]
[1643824203495,0.02045196,37468.0,37463.0,2.42544742]
[1643824203696,0.02045196,37468.0,37464.0,0.6007868]
[1643824203900,0.08786149,37467.0,37465.0,0.0536]
[1643824204296,0.02045196,37468.0,37465.0,0.0536]
[1643824204696,0.05,37468.0,37465.0,0.0536]
[1643824204952,0.05,37468.0,37465.0,0.120335]
[1643824205150,0.0504232,37468.0,37466.0,0.39073699]
[1643824205448,0.0504232,37468.0,37465.0,0.170335]
[1643824205449,0.0004232,37468.0,37467.0,0.0536]
[1643824205853,0.0004232,37468.0,37465.0,0.04554677]
[1643824206050,0.32070238,37471.0,37465.0,0.04554677]
[1643824206250,0.00058945,37469.0,37465.0,0.04554677]
[1643824206651,0.35829794,37466.0,37465.0,0.04554677]
[1643824207250,1.29227259,37466.0,37465.0,0.04554677]
[1643824207456,1.29227259,37466.0,37463.0,0.00445323]
[1643824207853,0.31166663,37465.0,37463.0,0.00445323]
[1643824208055,0.31299282,37465.0,37463.0,0.00445323]
[1643824208254,1.76013708,37464.0,37463.0,0.00445323]
[1643824208453,1.76013708,37464.0,37454.0,0.12259708]
[1643824208454,1.55,37464.0,37461.0,0.04554677]
[1643824209295,1.46629695,37462.0,37461.0,0.04554677]
[1643824209498,1.46629695,37462.0,37460.0,0.00445323]
[1643824210397,1.46629695,37462.0,37459.0,0.04554677]
[1643824210597,0.3271134,37460.0,37459.0,0.04554677]
[1643824211497,0.3271134,37460.0,37457.0,0.26571082]
[1643824211698,0.00052547,37464.0,37458.0,0.05]
[1643824211898,0.5435624,37464.0,37458.0,0.05]
[1643824212340,0.54408784,37464.0,37458.0,0.05]
[1643824212541,0.54408784,37464.0,37459.0,0.04554677]
[1643824212744,0.38417581,37462.0,37459.0,0.04554677]
[1643824213541,0.38417581,37462.0,37458.0,0.00445323]
[1643824213943,0.38417581,37462.0,37458.0,0.22482256]
[1643824214140,0.38417581,37462.0,37458.0,0.32482256]
[1643824215348,0.38417581,37462.0,37458.0,0.10445323]
[1643824215545,0.38417581,37462.0,37458.0,0.05445323]
[1643824215744,0.38417581,37462.0,37459.0,0.05]
[1643824215945,0.38417581,37462.0,37458.0,0.00445323]
[1643824216196,0.38417581,37462.0,37455.0,0.1]
[1643824216197,0.63446358,37459.0,37455.0,0.05]
[1643824216393,0.63446358,37459.0,37454.0,0.00039708]
[1643824216591,0.63446358,37459.0,37455.0,0.04554677]
[1643824216993,0.08446358,37459.0,37455.0,0.04554677]
[1643824217194,0.38417581,37462.0,37455.0,0.04554677]
[1643824217394,0.05,37461.0,37455.0,0.04554677]
[1643824218396,0.05,37461.0,37457.0,0.27116888]
[1643824218596,0.02113413,37463.0,37459.0,0.8]
[1643824218795,0.02113413,37463.0,37460.0,0.41182709]
[1643824218993,0.02113413,37463.0,37460.0,0.51182709]
[1643824219198,0.02113413,37463.0,37461.0,0.24298514]
[1643824219398,0.00012944,37463.0,37462.0,1.74856751]
[1643824219597,0.05,37465.0,37464.0,0.30942581]
[1643824219846,0.05,37465.0,37464.0,0.71527069]
[1643824220043,0.05,37465.0,37464.0,0.76527069]
[1643824220245,0.05,37465.0,37464.0,0.81527069]
[1643824220447,0.08356122,37467.0,37464.0,0.1536]
[1643824220846,0.08356122,37467.0,37462.0,0.09554677]
[1643824221045,0.08356122,37467.0,37462.0,0.04554677]
[1643824221246,0.08356122,37467.0,37462.0,0.09554677]
[1643824221545,0.26874755,37465.0,37462.0,0.09554677]
[1643824221846,0.26874755,37465.0,37462.0,0.04554677]
[1643824222446,0.26874755,37465.0,37461.0,0.00445323]
[1643824222646,0.09473754,37464.0,37461.0,0.00445323]
[1643824223250,0.71208446,37462.0,37461.0,0.00445323]
[1643824223444,0.71208446,37462.0,37459.0,0.04554677]
[1643824223702,0.36208446,37462.0,37459.0,0.04554677]
[1643824224496,0.36208446,37462.0,37458.0,0.00445323]
[1643824225302,0.69208638,37461.0,37458.0,0.00445323]
[1643824225501,0.354038,37460.0,37458.0,0.04554677]
[1643824225706,2.00239246,37459.0,37458.0,0.04554677]
[1643824225907,2.35643046,37459.0,37458.0,0.04554677]
[1643824226099,2.75574542,37459.0,37458.0,0.04554677]
[1643824226802,1.10574542,37459.0,37456.0,0.00445323]
[1643824227001,0.72927086,37457.0,37456.0,0.00445323]
[1643824227439,0.72927086,37457.0,37454.0,0.04594385]
[1643824228140,0.65,37457.0,37454.0,0.04594385]
[1643824228341,0.65,37457.0,37454.0,0.00039708]
[1643824229143,0.05,37458.0,37454.0,0.00039708]
[1643824229543,0.29943039,37459.0,37454.0,0.04594385]
[1643824230342,0.45418296,37459.0,37454.0,0.04594385]
[1643824231099,0.30782142,37458.0,37454.0,0.04594385]
[1643824231594,0.30782142,37458.0,37454.0,0.04604294]
[1643824231995,0.45418296,37459.0,37454.0,0.04604294]
[1643824232998,0.34943039,37459.0,37454.0,0.04604294]
[1643824233197,0.34882629,37459.0,37454.0,0.04604294]
[1643824233703,0.66139794,37458.0,37454.0,0.04604294]
[1643824233899,0.354038,37457.0,37454.0,0.04594385]
[1643824234099,0.33312711,37456.0,37454.0,0.04594385]
[1643824234299,1.58616244,37455.0,37454.0,0.04594385]
[1643824234600,1.58616244,37455.0,37454.0,0.00039708]
[1643824235048,1.58616244,37455.0,37454.0,0.00049617]
[1643824235646,1.58616244,37455.0,37454.0,0.00039708]
[1643824237749,1.68616244,37455.0,37454.0,0.00039708]
[1643824237949,2.23616244,37455.0,37454.0,0.00039708]
[1643824238149,2.47267235,37455.0,37454.0,0.00039708]
[1643824238595,2.23616244,37455.0,37454.0,0.00039708]
[1643824239598,2.2362768,37455.0,37454.0,0.00039708]
[1643824241601,3.0372468,37455.0,37454.0,0.00039708]
[1643824242744,3.0872468,37455.0,37454.0,0.00039708]
[1643824243145,3.1872468,37455.0,37454.0,0.00039708]
[1643824243348,3.1872468,37455.0,37442.0,0.00045784]
[1643824243349,1.7,37454.0,37442.0,0.02135683]
[1643824243557,0.066792,37450.0,37442.0,0.02181867]
[1643824243751,0.89888261,37449.0,37442.0,0.02181867]
[1643824243955,0.354038,37448.0,37442.0,0.02181867]
[1643824244148,0.3529834,37447.0,37442.0,0.02181867]
[1643824244450,1.26947159,37443.0,37442.0,0.07135683]
[1643824244652,1.67710959,37443.0,37442.0,0.07135683]
[1643824244849,1.77710959,37443.0,37442.0,0.07181867]
[1643824245052,1.77710959,37443.0,37442.0,0.05046184]
[1643824245550,1.77710959,37443.0,37442.0,0.00046184]
[1643824245751,1.77710959,37443.0,37438.0,0.00010243]
[1643824245948,0.54392908,37442.0,37441.0,0.00046186]
[1643824246209,0.64752908,37442.0,37441.0,0.00046186]
[1643824246615,0.74752908,37442.0,37441.0,0.00046186]
[1643824246807,1.7,37441.0,37438.0,0.00010243]
[1643824247009,1.85,37439.0,37438.0,0.00010243]
[1643824247208,1.85,37439.0,37431.0,0.01]
[1643824247209,0.066819,37437.0,37431.0,0.01]
[1643824247407,1.17491709,37436.0,37431.0,0.01]
[1643824247609,0.28216139,37434.0,37431.0,0.01]
[1643824247907,1.64465238,37433.0,37432.0,0.05]
[1643824248106,1.64465238,37433.0,37432.0,0.05010243]
[1643824248308,1.74465238,37433.0,37432.0,0.05010243]
[1643824248505,1.74465238,37433.0,37432.0,0.00010243]
[1643824248706,1.74465238,37433.0,37431.0,0.01]
[1643824248908,1.67242236,37432.0,37431.0,0.01]
[1643824249112,0.407638,37432.0,37431.0,0.01]
[1643824249310,0.0536,37432.0,37431.0,0.01]
[1643824249711,0.05,37435.0,37431.0,0.01]
[1643824250548,0.28691389,37435.0,37432.0,0.25416865]
[1643824250856,0.354038,37434.0,37432.0,0.25427108]
[1643824251046,0.59300044,37435.0,37432.0,0.25427108]
[1643824251451,0.54300044,37435.0,37432.0,0.25427108]
[1643824251850,0.54300044,37435.0,37432.0,0.25481702]
[1643824252250,0.30608655,37435.0,37432.0,0.25481702]
[1643824252750,0.05,37436.0,37432.0,0.25481702]
[1643824252953,0.05,37436.0,37432.0,0.25427108]
[1643824253151,0.05,37436.0,37432.0,0.25481702]
[1643824253796,0.07375396,37435.0,37432.0,0.00064837]
[1643824253991,0.74403943,37433.0,37432.0,0.00064837]
[1643824254195,1.07307743,37433.0,37432.0,0.00010243]
[1643824254392,0.62307743,37433.0,37432.0,0.00054593]
[1643824254991,0.61807743,37433.0,37432.0,0.00064836]
[1643824255396,0.61807743,37433.0,37432.0,0.00010243]
[1643824255597,0.61807743,37433.0,37431.0,0.01050623]
[1643824255795,1.404038,37432.0,37431.0,0.01050623]
[1643824256497,1.404038,37432.0,37431.0,0.01]
[1643824256701,0.454038,37432.0,37431.0,0.01]
[1643824256896,0.26403943,37433.0,37431.0,0.01]
[1643824257098,1.054038,37432.0,37431.0,0.01010243]
[1643824257343,1.154038,37432.0,37431.0,0.01010243]
[1643824257645,1.38745628,37432.0,37431.0,0.01010243]
[1643824257846,1.93745628,37432.0,37431.0,0.01010243]
[1643824258046,1.38745628,37432.0,37431.0,0.01010243]
[1643824258243,1.154038,37432.0,37431.0,0.01010243]
[1643824258644,1.604038,37432.0,37431.0,0.01010243]
[1643824259045,1.604038,37432.0,37431.0,0.01]
[1643824259443,1.15415221,37432.0,37431.0,0.01]
[1643824260645,2.15415221,37432.0,37431.0,0.01]
[1643824260843,2.47642208,37432.0,37431.0,0.01]
[1643824261092,2.15415221,37432.0,37431.0,0.01]
[1643824262295,1.15415221,37432.0,37431.0,0.01]
[1643824262894,1.15415221,37432.0,37431.0,0.01010243]
[1643824263701,1.65415221,37432.0,37431.0,0.01010243]
[1643824263897,1.65415221,37432.0,37431.0,0.01]
[1643824264096,1.15415221,37432.0,37431.0,0.01]
[1643824264502,1.15415221,37432.0,37431.0,0.01010243]
[1643824264951,0.35415221,37432.0,37431.0,0.01010243]
[1643824265151,0.35415221,37432.0,37431.0,0.01]
[1643824265152,0.00011421,37432.0,37431.0,0.01]
[1643824265349,0.00161421,37432.0,37431.0,0.01]
[1643824265545,0.00161421,37432.0,37431.0,0.23101598]
[1643824265747,0.00161421,37432.0,37431.0,0.23111841]
[1643824265945,0.00161421,37432.0,37431.0,0.01010243]
[1643824266145,0.00107889,37432.0,37431.0,0.01010243]
[1643824266350,0.00107889,37432.0,37431.0,0.01]
[1643824267052,0.00107889,37432.0,37431.0,0.28189279]
[1643824267247,0.00107889,37432.0,37431.0,0.01010243]
[1643824267647,0.00107889,37432.0,37431.0,0.01]
[1643824268247,0.24841628,37432.0,37431.0,0.01010243]
[1643824268695,1.40245428,37432.0,37431.0,0.01010243]
[1643824269496,1.66593654,37432.0,37431.0,0.01010243]
[1643824269701,1.66603933,37432.0,37431.0,0.01010243]
[1643824269895,1.7,37431.0,37430.0,0.00060499]
[1643824270099,2.270865,37431.0,37430.0,0.00060499]
[1643824270297,1.76683,37430.0,37427.0,0.01922402]
[1643824270495,2.51277539,37429.0,37428.0,0.03077598]
[1643824270697,2.84402904,37429.0,37428.0,0.03077598]
[1643824271096,3.12726248,37429.0,37428.0,0.03077598]
[1643824271495,0.082377,37428.0,37426.0,0.01922402]
[1643824271697,2.50072052,37427.0,37426.0,0.01922402]
[1643824272097,2.78197417,37427.0,37426.0,0.01922402]
[1643824272348,2.78197417,37427.0,37412.0,0.397]
[1643824272547,1.93123084,37425.0,37424.0,0.03077598]
[1643824272746,0.68526884,37425.0,37424.0,0.03077598]
[1643824272947,0.99940897,37425.0,37424.0,0.03077598]
[1643824273546,0.99940897,37425.0,37422.0,0.01922402]
[1643824273747,0.354038,37424.0,37422.0,0.01922402]
[1643824274048,1.65524144,37423.0,37422.0,0.01922402]
[1643824274448,1.65524144,37423.0,37421.0,0.02987042]
[1643824274449,1.00108841,37422.0,37421.0,0.02987042]
[1643824274852,1.05108841,37422.0,37421.0,0.03041488]
[1643824275049,1.05108841,37422.0,37421.0,0.01054446]
[1643824275448,1.50512641,37422.0,37421.0,0.01054446]
[1643824275847,1.45512641,37422.0,37421.0,0.01]
[1643824276504,2.25512641,37422.0,37421.0,0.01]
[1643824277309,1.45512641,37422.0,37421.0,0.01]
[1643824277512,2.30512641,37422.0,37421.0,0.01]
[1643824277707,2.52141623,37422.0,37421.0,0.01]
[1643824278108,2.57501623,37422.0,37421.0,0.01]
[1643824279008,1.77501623,37422.0,37421.0,0.01]
[1643824279507,2.17511634,37422.0,37421.0,0.01]
[1643824279848,1.59011634,37422.0,37421.0,0.01]
[1643824280443,2.39011634,37422.0,37421.0,0.01]
[1643824281243,1.79011634,37422.0,37421.0,0.01]
[1643824281448,1.59011634,37422.0,37421.0,0.01]
[1643824283244,1.79011634,37422.0,37421.0,0.01]
[1643824283696,1.74011634,37422.0,37421.0,0.01]
[1643824284098,1.55882652,37422.0,37421.0,0.01]
[1643824284997,1.74012311,37422.0,37421.0,0.01]
[1643824285600,1.74012311,37422.0,37421.0,0.01010242]
[1643824285799,1.79012311,37422.0,37421.0,0.01010242]
[1643824286799,1.50882652,37422.0,37421.0,0.01]
[1643824286999,1.45522652,37422.0,37421.0,0.01]
[1643824287345,1.35522652,37422.0,37421.0,0.01]
[1643824287547,1.35522652,37422.0,37421.0,0.01010242]
[1643824287750,1.45522652,37422.0,37421.0,0.01010242]
[1643824288149,1.53652171,37422.0,37421.0,0.01]
[1643824288951,1.53652171,37422.0,37421.0,0.01010242]
[1643824289349,1.53652171,37422.0,37421.0,0.01]
[1643824289350,2.33652171,37422.0,37421.0,0.01]
[1643824289949,2.33652171,37422.0,37421.0,0.01010242]
[1643824290150,1.53652171,37422.0,37421.0,0.01010242]
[1643824290350,2.33652171,37422.0,37421.0,0.01010242]
[1643824290555,2.33652171,37422.0,37421.0,0.01]
[1643824290950,1.53652171,37422.0,37421.0,0.01]
[1643824291196,1.35522652,37422.0,37421.0,0.01010242]
[1643824291396,1.5365217,37422.0,37421.0,0.01010242]
[1643824291794,1.5365217,37422.0,37421.0,0.01]
[1643824292395,1.5365217,37422.0,37421.0,0.01010242]
[1643824292596,1.6365217,37422.0,37421.0,0.01010242]
[1643824292997,1.45522652,37422.0,37421.0,0.01]
[1643824293208,1.63652206,37422.0,37421.0,0.01]
[1643824293698,1.63652206,37422.0,37421.0,0.01010242]
[1643824296349,1.63652206,37422.0,37421.0,0.01]
[1643824296950,1.77021482,37422.0,37421.0,0.01010242]
[1643824297150,2.02561609,37422.0,37421.0,0.01010242]
[1643824297350,2.62561609,37422.0,37421.0,0.01010242]
[1643824297550,2.62561609,37422.0,37421.0,0.01]
[1643824298151,2.02561609,37422.0,37421.0,0.01010242]
[1643824298456,2.42561609,37422.0,37421.0,0.01010242]
[1643824298701,2.02561609,37422.0,37421.0,0.01010242]
[1643824298900,1.7,37421.0,37420.0,0.00054787]
[1643824299101,2.054038,37421.0,37420.0,0.00054787]
[1643824299305,2.33533354,37421.0,37420.0,0.00054787]
[1643824299503,2.40218054,37421.0,37420.0,0.00054787]
[1643824299701,2.43010892,37421.0,37420.0,0.00044545]
[1643824299901,2.56379492,37421.0,37418.0,0.01922402]
[1643824300104,0.65345426,37420.0,37419.0,0.00044546]
[1643824300303,2.3347498,37420.0,37419.0,0.00054788]
[1643824300902,2.3347498,37420.0,37419.0,0.00044546]
[1643824301105,2.3347498,37420.0,37418.0,0.00010242]
[1643824301305,2.21305498,37419.0,37418.0,0.0005479]
[1643824301504,2.39435052,37419.0,37418.0,0.00044548]
[1643824301703,2.21305498,37419.0,37418.0,0.00044548]
[1643824302105,2.21305498,37419.0,37418.0,0.0005479]
[1643824302344,2.31305498,37419.0,37418.0,0.00010242]
[1643824302550,2.49436489,37419.0,37418.0,0.00010242]
[1643824302747,2.54436489,37419.0,37417.0,0.00054354]
[1643824303046,2.004038,37418.0,37417.0,0.00054354]
[1643824303249,2.004038,37418.0,37417.0,0.00064596]
[1643824303446,1.904038,37418.0,37417.0,0.00010242]
[1643824303846,2.070884,37418.0,37416.0,0.00054356]
[1643824304047,2.72447178,37417.0,37416.0,0.00054356]
[1643824304446,2.72447178,37417.0,37416.0,0.00064598]
[1643824304647,2.72447178,37417.0,37416.0,0.00010242]
[1643824305146,2.72447178,37417.0,37415.0,0.00054357]
[1643824305347,1.254038,37416.0,37415.0,0.00054357]
[1643824305748,1.254038,37416.0,37415.0,0.00010242]
[1643824305951,1.7,37415.0,37414.0,0.00046513]
[1643824306218,1.7,37415.0,37392.0,3.39226976]
[1643824306219,1.766852,37413.0,37403.0,0.00186107]
[1643824306417,0.75625775,37412.0,37403.0,0.00186107]
[1643824306614,1.7,37410.0,37407.0,0.50177964]
[1643824306815,1.61457993,37409.0,37407.0,0.26976674]
[1643824307016,2.16382958,37408.0,37407.0,0.26976674]
[1643824307213,2.26382958,37408.0,37407.0,0.26976674]
[1643824307418,2.26382958,37408.0,37401.0,0.01]
[1643824307419,1.7,37407.0,37401.0,0.01]
[1643824307616,1.7,37407.0,37400.0,0.0001]
[1643824307617,0.7345187,37406.0,37405.0,0.05]
[1643824307816,1.7,37405.0,37400.0,0.0001]
[1643824308013,0.407638,37404.0,37400.0,0.0001]
[1643824308215,0.14380669,37402.0,37400.0,0.0001]
[1643824308416,2.41956154,37401.0,37400.0,0.0001]
[1643824308617,0.71934454,37401.0,37400.0,0.0001]
[1643824308821,0.454038,37401.0,37400.0,0.0001]
[1643824309216,0.9,37400.0,37396.0,2.66376408]
[1643824309418,0.066879,37402.0,37396.0,2.66376408]
[1643824309620,0.0536,37404.0,37400.0,0.24648552]
[1643824309856,0.454038,37403.0,37399.0,0.00053926]
[1643824310054,0.1,37403.0,37399.0,0.00053926]
[1643824310254,0.0536,37404.0,37399.0,0.00053926]
[1643824310456,0.22702283,37400.0,37399.0,0.00053926]
[1643824310760,0.08002626,37402.0,37399.0,0.22069093]
[1643824311062,0.066864,37403.0,37400.0,0.00053925]
[1643824311255,0.354038,37402.0,37400.0,0.00053925]
[1643824311957,0.66415683,37402.0,37398.0,0.05]
[1643824312162,0.1158514,37403.0,37399.0,0.00053926]
[1643824312373,0.05,37403.0,37400.0,0.1]
[1643824312559,0.80107765,37409.0,37400.0,0.1]
[1643824312560,0.80107765,37409.0,37401.0,1.4536]
[1643824312760,0.80107765,37409.0,37404.0,0.05]
[1643824312959,0.80107765,37409.0,37405.0,1.5536]
[1643824313263,0.80107765,37409.0,37405.0,0.44017309]
[1643824313459,0.05,37408.0,37405.0,0.44017309]
[1643824313901,0.05,37408.0,37405.0,0.29017309]
[1643824314902,0.05,37408.0,37405.0,0.0536]
[1643824315401,0.05,37408.0,37404.0,0.05049687]
[1643824315402,0.34102863,37408.0,37404.0,0.05049687]
[1643824315702,0.64557259,37407.0,37405.0,0.00049686]
[1643824315901,1.604038,37406.0,37405.0,0.00049686]
[1643824316103,2.00003422,37406.0,37405.0,0.00049686]
[1643824316301,1.7813631,37405.0,37399.0,0.00198772]
[1643824316502,1.7813631,37405.0,37403.0,0.05]
[1643824316503,0.72725746,37404.0,37403.0,0.05]
[1643824316706,1.75,37403.0,37399.0,0.00198772]
[1643824316902,0.20465993,37401.0,37396.0,2.66376408]
[1643824317101,0.420918,37400.0,37393.0,0.02090469]
[1643824317351,0.066881,37398.0,37394.0,0.05]
[1643824317556,0.68790945,37397.0,37394.0,0.05]
[1643824317750,0.43598645,37396.0,37394.0,0.05]
[1643824317951,1.31190319,37395.0,37394.0,0.05010318]
[1643824318154,0.66190319,37395.0,37394.0,0.05023567]
[1643824318453,0.08194845,37396.0,37394.0,0.00023567]
[1643824319054,0.13194845,37396.0,37394.0,0.00023567]
[1643824319256,0.93989237,37395.0,37394.0,0.00010318]
[1643824319654,0.28967537,37395.0,37394.0,0.00010318]
[1643824319853,0.05,37396.0,37394.0,0.00010318]
[1643824320356,0.5,37395.0,37394.0,0.00010318]
[1643824320856,0.34984253,37397.0,37394.0,0.00010318]
[1643824320857,0.05,37397.0,37394.0,0.00010318]
[1643824321502,0.05,37397.0,37394.0,0.00020567]
[1643824321701,0.05,37397.0,37394.0,0.00067837]
[1643824322205,0.05,37397.0,37394.0,0.00057588]
[1643824322803,0.05,37397.0,37394.0,0.00010318]
[1643824323003,0.05,37397.0,37396.0,0.99802173]
[1643824323404,0.23432621,37402.0,37396.0,0.29802173]
[1643824323808,0.23432621,37402.0,37400.0,0.1]
[1643824323809,0.00010578,37402.0,37400.0,0.1]
[1643824324005,0.00010578,37402.0,37397.0,0.00010249]
[1643824324203,0.00010578,37402.0,37399.0,0.066852]
[1643824324404,0.00010578,37402.0,37400.0,0.1]
[1643824324606,0.05,37403.0,37401.0,0.96688915]
[1643824324862,0.05,37403.0,37402.0,0.9136966]
[1643824325059,0.05,37403.0,37402.0,2.18567011]
[1643824325455,0.05,37403.0,37402.0,2.1857726]
[1643824325655,0.00010417,37406.0,37402.0,2.2357726]
[1643824325855,0.00010417,37406.0,37405.0,0.85]
[1643824326058,0.80097,37409.0,37405.0,0.85]
[1643824326059,0.75117417,37409.0,37405.0,1.020438]
[1643824326258,0.75117417,37409.0,37407.0,0.1]
[1643824326458,0.75117417,37409.0,37407.0,0.15370249]
[1643824326959,0.75117417,37409.0,37408.0,0.25014949]
[1643824327163,0.75117417,37409.0,37408.0,0.31708698]
[1643824328258,0.75117417,37409.0,37408.0,0.25025198]
[1643824329097,0.75107417,37409.0,37408.0,0.25025198]
[1643824329299,0.75107417,37409.0,37408.0,0.00010249]
[1643824329500,0.75107417,37409.0,37407.0,0.05010249]
[1643824329706,9.697e-05,37408.0,37407.0,0.05010249]
[1643824329900,0.08215607,37408.0,37407.0,0.05010249]
[1643824330103,9.697e-05,37408.0,37407.0,0.00010249]
[1643824330303,9.697e-05,37408.0,37406.0,0.05]
[1643824330503,9.697e-05,37408.0,37405.0,0.30394697]
[1643824331205,0.09086165,37408.0,37405.0,0.30394697]
[1643824331601,9.697e-05,37408.0,37405.0,0.30394697]
[1643824334455,0.1490441,37410.0,37405.0,0.30394697]
[1643824335059,0.3221415,37409.0,37405.0,0.00010249]
[1643824335260,0.3221415,37409.0,37404.0,0.05]
[1643824335261,0.454038,37408.0,37404.0,0.05]
[1643824335457,0.6761795,37407.0,37404.0,0.05]
[1643824335658,0.354038,37406.0,37404.0,0.05]
[1643824335856,0.354038,37406.0,37404.0,0.05010249]
[1643824336108,1.81878281,37405.0,37404.0,0.05010249]
[1643824336309,2.47605232,37405.0,37404.0,0.05010249]
[1643824336507,2.65741449,37405.0,37404.0,0.05]
[1643824336712,0.066868,37404.0,37398.0,0.00010249]
[1643824336906,0.5401061,37399.0,37398.0,0.00010249]
[1643824337109,0.5401061,37399.0,37395.0,0.00010249]
[1643824337513,0.29448041,37398.0,37395.0,0.00010249]
[1643824337709,0.5401061,37399.0,37394.0,0.05020567]
[1643824337907,0.82838115,37399.0,37394.0,0.05020567]
[1643824338311,0.29054038,37398.0,37394.0,0.05020567]
[1643824338910,0.5901061,37399.0,37394.0,0.05020567]
[1643824339953,0.5901061,37399.0,37395.0,0.0005362]
[1643824340160,0.5901061,37399.0,37395.0,0.00063869]
[1643824340956,0.5901061,37399.0,37395.0,0.00010249]
[1643824341155,0.5901061,37399.0,37395.0,0.0005362]
[1643824341756,0.5901061,37399.0,37395.0,0.00063869]
[1643824343157,0.5,37399.0,37395.0,0.00063869]
[1643824343359,0.5,37399.0,37395.0,0.00010249]
[1643824343609,0.5,37399.0,37395.0,0.0005362]
[1643824344214,0.5,37399.0,37395.0,0.00063869]
[1643824344412,9.429e-05,37398.0,37395.0,0.00010249]
[1643824344614,9.429e-05,37398.0,37395.0,0.00059662]
[1643824345115,9.429e-05,37398.0,37394.0,0.26871424]
[1643824345416,9.429e-05,37398.0,37394.0,0.0456998]
[1643824346217,9.429e-05,37398.0,37395.0,0.25313427]
[1643824347752,9.429e-05,37398.0,37395.0,0.30313427]
[1643824349054,9.429e-05,37398.0,37395.0,0.25313427]
[1643824350458,9.429e-05,37398.0,37394.0,0.0456998]
[1643824351501,9.429e-05,37398.0,37395.0,0.22470786]
[1643824351698,9.429e-05,37398.0,37395.0,0.27470786]
[1643824352098,9.429e-05,37398.0,37395.0,0.05]
[1643824352399,9.429e-05,37398.0,37394.0,0.0456998]
[1643824353300,9.429e-05,37398.0,37394.0,0.28093425]
[1643824354951,0.29573892,37397.0,37394.0,0.0456998]
[1643824355850,0.354038,37396.0,37394.0,0.0456998]
[1643824356049,0.29573892,37397.0,37394.0,0.0456998]
[1643824356451,0.354038,37396.0,37394.0,0.0456998]
[1643824357850,0.29573892,37397.0,37392.0,0.0043002]
[1643824357851,0.066875,37395.0,37392.0,0.0043002]
[1643824358050,0.066875,37395.0,37393.0,0.0004912]
[1643824358913,0.06696529,37398.0,37391.0,0.0556998]
[1643824359115,0.06696529,37398.0,37393.0,0.23645938]
[1643824359512,9.348e-05,37395.0,37393.0,0.23645938]
[1643824359713,9.348e-05,37395.0,37394.0,0.2947821]
[1643824360515,9.348e-05,37395.0,37394.0,0.29488408]
[1643824362747,0.06196448,37398.0,37394.0,0.29488408]
[1643824364551,8.414e-05,37395.0,37394.0,0.29488408]
[1643824365148,8.414e-05,37395.0,37394.0,0.2947821]
[1643824365749,8.414e-05,37395.0,37394.0,0.29488408]
[1643824369599,0.06204862,37398.0,37394.0,0.29488408]
[1643824372155,0.06204862,37398.0,37394.0,0.34488408]
[1643824374704,0.06204862,37398.0,37394.0,0.3447821]
[1643824375303,0.06204862,37398.0,37394.0,0.34488408]
[1643824375704,0.06204862,37398.0,37394.0,0.29488408]
[1643824375904,0.06204862,37398.0,37394.0,0.2897821]
[1643824376403,0.06204862,37398.0,37394.0,0.28988408]
[1643824377204,0.06204862,37398.0,37394.0,0.2897821]
[1643824377851,0.06204862,37398.0,37394.0,0.28988408]
[1643824378350,0.06204862,37398.0,37394.0,0.2897821]
[1643824378955,0.06204862,37398.0,37394.0,0.28988408]
[1643824379554,0.00012753,37397.0,37394.0,0.2897821]
[1643824380156,0.00012753,37397.0,37394.0,0.28988408]
[1643824380756,0.00012753,37397.0,37394.0,0.2897821]
[1643824381403,0.00012753,37397.0,37394.0,0.28988408]
[1643824382003,0.00012753,37397.0,37394.0,0.2897821]
[1643824382602,0.04664956,37399.0,37394.0,0.2897821]
[1643824383703,0.354038,37398.0,37394.0,0.2897821]
[1643824383902,0.04664956,37399.0,37394.0,0.2897821]
[1643824384602,0.00019934,37396.0,37394.0,0.2897821]
[1643824386253,0.0432289,37399.0,37394.0,0.2897821]
[1643824393050,0.0432289,37399.0,37398.0,0.0003]
[1643824393247,0.3932289,37399.0,37398.0,0.0003]
[1643824393448,0.704038,37399.0,37398.0,0.0003]
[1643824394347,0.35,37399.0,37398.0,0.0003]
[1643824396300,0.704038,37399.0,37398.0,0.0003]
[1643824400151,1.104038,37399.0,37398.0,0.0003]
[1643824400652,1.28545904,37399.0,37398.0,0.0003]
[1643824400851,1.104038,37399.0,37398.0,0.0003]
[1643824401059,1.28545904,37399.0,37398.0,0.0003]
[1643824401253,0.88545904,37399.0,37398.0,0.0003]
[1643824401655,0.704038,37399.0,37398.0,0.0003]
[1643824403258,0.80377152,37399.0,37398.0,0.0003]
[1643824403698,0.98519256,37399.0,37398.0,0.0003]
[1643824404099,1.33519256,37399.0,37398.0,0.0003]
[1643824404299,0.98519256,37399.0,37398.0,0.0003]
[1643824405500,0.88545904,37399.0,37398.0,0.0003]
[1643824405901,0.704038,37399.0,37398.0,0.0003]
[1643824409451,0.35,37399.0,37398.0,0.0003]
[1643824410057,0.85,37399.0,37398.0,0.0003]
[1643824410252,1.204038,37399.0,37398.0,0.0003]
[1643824410654,1.38545904,37399.0,37398.0,0.0003]
[1643824411303,1.38477329,37399.0,37398.0,0.0003]
[1643824411504,0.88477329,37399.0,37398.0,0.0003]
[1643824411907,1.06376663,37399.0,37398.0,0.0003]
[1643824412106,1.81376663,37399.0,37398.0,0.0003]
[1643824412311,1.99518767,37399.0,37398.0,0.0003]
[1643824412508,2.22806902,37399.0,37398.0,0.0003]
[1643824414210,1.86765464,37399.0,37398.0,0.0003]
[1643824415059,1.11765464,37399.0,37398.0,0.0003]
[1643824415359,0.88477329,37399.0,37398.0,0.0003]
[1643824415755,0.70335225,37399.0,37398.0,0.0003]
[1643824415954,1.33477329,37399.0,37398.0,0.0003]
[1643824416261,0.02848163,37404.0,37399.0,1.2]
[1643824416458,0.00054082,37404.0,37400.0,0.4817765]
[1643824416656,0.00054082,37404.0,37401.0,0.7492]
[1643824416657,0.00731192,37404.0,37401.0,0.7492]
[1643824416856,0.00731192,37404.0,37402.0,0.4820415]
[1643824417057,0.0067711,37404.0,37402.0,0.2599]
[1643824417255,0.0067711,37404.0,37403.0,2.17354582]
[1643824417256,0.00731196,37404.0,37403.0,2.17354582]
[1643824417460,0.02110852,37416.0,37404.0,1.199735]
[1643824417661,0.02110852,37416.0,37411.0,0.049735]